{"text_format":"1","workbook":"xlsx","n_sheets":9,"sheets":["Instruções","Resumo","Detalhe","Preços_Fixos","Preços_Index","ERSE_Precos_Fixos","ERSE_Precos_Index","ERSE_CondComerciais","ERSE_Aux"],"not_rendered":{"charts":0,"images":4,"macros":1,"external_links":0,"defined_names":7,"comments":0,"pivot_tables":0},"unopened":[],"bounds":{"document_bytes":16777216,"sheet_cells":100000,"rows_first":2000,"rows_last":500,"rows_between":2000,"halvings":0,"cell_chars":16384,"cell_head_chars":4096},"cells_cut":0,"cells_raw":0,"read":"whole","date_system":"1900"}

{"sheet":"Instruções","index":0,"n_rows":35,"n_cols":1,"rows_kept":35,"cut":false,"hidden":false,"merged":[]}
[]
["Instruções para o preenchimento do modelo de reporte dos preços de referência em Baixa Pressão Maior que 10 000 m3"]
["Detalhes contratuais particulares relativos às ofertas comerciais em Baixa Pressão superior a 10 000 m3, no âmbito da supervisão do mercado retalhista do setor elétrico e do setor de gás natural (Diretiva n.º 16/2024)."]
[]
["O modelo de reporte divide-se em quatro folhas de cálculo: (1) Resumo; (2) Detalhe, (3) Preços Fixos, (4) Preços Index. Os campos identificados com um sinal de asterisco, *, são de preenchimento obrigatório."]
[]
["A folha (1) \"Resumo\" apresenta de forma agregada os principais erros e alertas de preenchimento. O formulário deverá ser enviado à ERSE sem quaisquer erros de preenchimento e devidamente validado. Ao longo dos vários campos de preenchimento do formulário, estarão disponíveis mensagens de alertas, de modo a auxiliar o correto preenchimento do formulário. Caso existam erros de preenchimento, a oferta comercial não será carregada para o simulador de preços da ERSE."]
[]
["Para a correta utilização deste formulário deve observar-se os seguintes aspetos:\n1- As macros do formulário têm de ser ativadas no botão \"Ativar Conteúdo\";\n2- Não usar a opção \"Cortar\"/\"Colar\". Caso contrário, irá corromper o ficheiro. Em alternativa, usar a função \"Copiar\"/\"Colar Valor\";\n3- Não arrastar células. Caso contrário, irá corromper o ficheiro."]
[]
["De acordo com a Diretiva n.º 7/2024, as ofertas comerciais deverão ser comunicadas à ERSE sempre que se verificar alterações nas condições de preços ou das condições comerciais. Neste sentido, sempre que ocorrerem alterações nas Tarifas de Acesso às Redes (TAR), ou nos componentes da fórmula de indexação, ou outras condições de preços, essas alterações deverão ser comunicadas à ERSE. O incumprimento do envio desta informação tem por consequência a exclusão da oferta comercial do simulador de preços da ERSE, até ao envio de uma nova comunicação de informação atualizada."]
[]
["Esclarecimento da ERSE"]
["A ERSE reserva-se ao direito de, em algumas ofertas comerciais, disponibilizar um \"Esclarecimento da ERSE\", o qual visa informar o consumidor sobre as particularidades comerciais de algumas ofertas."]
[]
[]
["A folha \"Detalhe\" procura caracterizar as condições da oferta comercial, designadamente:"]
[]
["1. Identificação do comercializador, marca comercial e da oferta comercial"]
["Identificar o comercializador, a marca comercial e a oferta comercial, incluindo endereços web e contactos comerciais. O correto preenchimento deste campo é relevante, pela disponibilização de informação comercial através do simulador para as respetivas páginas de internet."]
[]
["2. Condições comerciais"]
["Preenchimento das condições contratuais da oferta comercial, designadamente:\n- Tipo de Fornecimento;\n- Duração do contrato;\n- Data início da oferta;\n- Data fim da oferta;\n- Modalidades de contratação, pagamento e faturação;\n- Oferta com fidelização associada;\n- Oferta 100% renovável;\n- Oferta Condicionada: condições contratuais que condicionam a subscrição ao público em geral. (Por exemplo: parcerias obrigatórias, equipamentos necessários, grupos de consumidores, restrições de consumo);\n- Preços Indexados (preencher exclusivamente o separador Preços Index);\n- Preços Fixos (preencher exclusivamente o separador Preços Fixos)."]
[]
["3. Serviços adicionais (obrigatórios e opcionais)"]
["Identificação da existência de serviços adicionais obrigatórios com um custo e/ou outros serviços adicionais opcionais."]
[]
["4. Reembolsos/Descontos"]
["Por \"reembolsos/descontos\" entende-se os descontos que revertem a favor do consumidor de forma indireta, desde que o reembolso ocorra garantidamente durante a vigência do contrato de fornecimento de energia.\n\nImporta destacar que os reembolsos/descontos para \"Todos os clientes\" e \"Novos clientes\" a preencher no campo \"4\" não deverão estar refletidos na tabela de preços, da folha \"Preços\", caso contrário irá ocorrer uma duplicação dos descontos, nos preços finais a carregar no simulador de preços da ERSE. O incorreto preenchimento da oferta, irá levar à exclusão da oferta no simulador.\n\nExemplo:\n- Reembolsos em cartão ou vale de desconto;\n- Reembolsos\\descontos em determinada data (por exemplo no último mês do contrato);\n- Reembolsos/Descontos aplicáveis apenas para novos clientes;\n\nNota:\nUm benefício e/ou vantagem que não esteja garantida na fatura deve ser detalhada no campo \"2.14. Descrição de outros benefícios relevantes.\". Por exemplo: benefícios/descontos em cinema para clientes..."]
[" "]
["5. Limites anuais de consumo"]
["Caso a oferta comercial apresente limites de consumo anual específicos é necessário identificar, por tipo de fornecimento: \n- O limite mínimo;\n- O limite máximo."]
["Nota: caso a oferta comercial não apresente limites de consumo anual específicos (limites máximo e/ou mínimo) não é necessário preencher este campo."]
[]
["Revisto: 15/05/2024"]

{"sheet":"Resumo","index":1,"n_rows":14,"n_cols":1,"rows_kept":14,"cut":false,"hidden":false,"merged":[]}
[]
["Resumo de erros"]
[]
["De forma a facilitar o preenchimento do formulário de reporte de ofertas comerciais, foi criado um sistema de alarmística que identifica os erros formais detetados. Desta forma, para que o formulário possa ser enviado à ERSE para efeitos de colocação das ofertas comerciais no simulador de preços, não podem existir erros no seu preenchimento. Esta folha constitui um resumo dos erros identificados e define o status do preenchimento. A colocação das ofertas comerciais é sempre sujeita a avaliação complementar por parte da ERSE."]
[]
["1- Erros na folha \"Detalhe\""]
[{"$f":"+IF(AND(COUNTIF(Detalhe!E3:E80,\"erro\")=36,Preços_Fixos!Q11=0,Preços_Index!$Z$13=0),\"\",IF(COUNTIF(Detalhe!E3:E80,\"erro\")=0,\"Ok\",COUNTIF(Detalhe!E3:E80,\"erro\")))","v":""}]
["2-Erros na folha \"Preços Fixos\""]
[{"$f":"+IF(AND(COUNTIF(Detalhe!E3:E80,\"erro\")=36,Preços_Fixos!Q11=0,Preços_Index!$Z$13=0),\"\",\n\nIF(AND(Detalhe!C51=2,Preços_Fixos!R11>0),Preços_Fixos!R11,\n\nIF(AND(Detalhe!C51=1,Preços_Fixos!Q11=0),Preços_Fixos!R11,\n\nIF(AND(Detalhe!C51=1,Preços_Fixos!R11>0),Preços_Fixos!R11,\n\nIF(AND(Detalhe!C51=1,Preços_Fixos!Q11>0,Preços_Fixos!R11=0),\"Ok\",\n\nIF(AND(Detalhe!C51=0,Preços_Fixos!Q11>0),Preços_Fixos!R11,\n\n\"\"\n\n))))))","v":""}]
["2-Erros na folha \"Preços Index\""]
[{"$f":"+IF(AND(COUNTIF(Detalhe!E3:E80,\"erro\")=36,Preços_Fixos!Q11=0,Preços_Index!$Z$13=0),\"\",\n\nIF(AND(Detalhe!C51=1,Preços_Index!AA13>0),Preços_Index!AA13,\n\nIF(AND(Detalhe!C51=2,Preços_Index!Z13=0),Preços_Index!AA13,\n\nIF(AND(Detalhe!C51=2,Preços_Index!AA13>0),Preços_Index!AA13,\n\nIF(AND(Detalhe!C51=2,Preços_Index!Z13>0,Preços_Index!AA13=0),\"Ok\",\n\nIF(AND(Detalhe!C51=0,Preços_Index!Z13>0),\n\nPreços_Index!AA13,\"\"\n\n))))))","v":""}]
["4-Estado do formulário"]
[]
[{"$f":"+IF(AND(A7=\"\",A9=\"\",A11=\"\"),\"\",IF(AND(A7=\"ok\",A9=\"ok\",A11=\"ok\"),\"O formulário pode ser submetido\",\n\nIF(AND(A7=\"ok\",AND(OR(A9=0,A9=\"\"),OR(A11=0,A11=\"\"))),\"O formulário apresenta erros que têm de ser corrigidos para poder ser submetido\",\n\nIF(AND(A7=\"ok\",OR(A9=\"ok\",A9=\"\"),OR(A11=\"ok\",A11=\"\")),\"O formulário pode ser submetido\",\n\n\"O formulário apresenta erros que têm de ser corrigidos para poder ser submetido\"))))","v":""}]

{"sheet":"Detalhe","index":2,"n_rows":80,"n_cols":7,"rows_kept":80,"cut":false,"hidden":false,"merged":[[49,6,49,20],[43,6,43,17]]}
[null,null,{"$f":"+IF(COUNTIF(E3:E80,\"=\"&\"ERRO\")>0,\"Campos com ERRO (Nº de ERROS = \"&COUNTIF(E3:E80,\"=\"&\"ERRO\")&\")\",\"\")","v":"Campos com ERRO (Nº de ERROS = 36)"}]
["1.","Identificação do comercializador, marca comercial e da oferta comercial"]
["1.0","Nome do Comercializador *",null,"Texto",{"$f":"+IF(C3=\"\",\"ERRO\",\"\")","v":"ERRO"},null,"Designação fiscal do Comercializador."]
["1.1","Código CRIA *",null,"Texto",{"$f":"+IF(C4=\"\",\"ERRO\",\"\")","v":"ERRO"},null,"Identificação do código CRIA do comercializador, através dos sete primeiros caracteres. Por exemplo: COM1234."]
["1.2","Marca comercial*",null,"Texto",{"$f":"+IF(C5=\"\",\"ERRO\",\"\")","v":"ERRO"},null,"Designação da marca comercial. Esta será a designação comercial que irá constar no simulador de preços da ERSE."]
["1.3","Nome da Oferta comercial *",null,"Texto",{"$f":"+IF(C6=\"\",\"ERRO\",\"\")","v":"ERRO"},null,"Designação completa da oferta comercial. Este será o nome da oferta comercial que irá constar no simulador de preços da ERSE."]
[null,"1.3.1 - Modalidade da oferta comercial",null,"Texto",null,null,"Esta informação não será disponibilizada ao público, mas permite à ERSE distinguir diferentes modalidades da mesma oferta comercial (p.e. descontos por débito direto, e/ou faturação eletrónica)."]
["1.4","Descrição da oferta comercial a incluir no simulador de preços da ERSE *",null,null,{"$f":"+IF(C8=\"\",\"ERRO\",\"\")","v":"ERRO"},null,"Esta descrição será disponibilizada ao público como descrição da oferta. Permite detalhar as características da oferta. O campo está limitado a 750 caracteres."]
["1.5","Segmento da oferta *",null,"Escolha",{"$f":"+IF(OR(C9=\"\",C9=0),\"ERRO\",\"\")","v":"ERRO"},null,"Especificação do segmento a que a oferta se destina. Para um preenchimento automático deve ser tido em conta a seguinte codificação: 2=Todos, 3=Doméstico, 4=Não-doméstico."]
["1.6","Endereço web da marca do comercializador *",null,"Web",{"$f":"+IF(C10=\"\",\"ERRO\",\"\")","v":"ERRO"},null,"Endereço web da marca do comercializador. Preencher com o website do comercializador."]
["1.7","Endereço web da oferta comercial*",null,"Web","ERRO",null,"Endereço web da oferta comercial."]
["1.8","Endereço web da ficha contratual padronizada*",null,"Web",{"$f":"+IF(C13=\"\",\"ERRO\",\"\")","v":"ERRO"},null,"Endereço web da ficha contratual padronizada da oferta comercial."]
["1.9","Endereço web das condições gerais do contrato*",null,"Web",{"$f":"+IF(C14=\"\",\"ERRO\",\"\")","v":"ERRO"},null,"Endereço web com as condições gerais do contrato da oferta comercial."]
["1.10","Contacto comercial telefónico*",null,"Número","ERRO",null,"Identificação do contacto para questões comerciais. Introduzir apenas um contacto."]
["1.11","Contacto comercial eletrónico*",null,"E-mail/ Web","ERRO",null,"Contacto eletrónico para questões comerciais. Introduzir apenas um contacto eletrónico (E-mail ou Endereço web)."]
[]
["2.","Condições comerciais"]
["2.1","Tipo de fornecimento *",null,"Escolha",{"$f":"+IF(OR(C18=\"\",C18=0),\"ERRO\",\"\")","v":"ERRO"},null,"Especificação do tipo de fornecimento a que a oferta se destina. Para um preenchimento automático deve ser tido em conta a seguinte codificação: 1=Gás."]
["2.2","Duração do contrato (meses) *",null,"Número",{"$f":"+IF(C19=\"\",\"ERRO\",\"\")","v":"ERRO"},null,"Número de meses do contrato."]
["2.3","Data de início da aplicação dos preços da oferta comercial *",null,"DD-MM-AAAA",{"$f":"+IF(C20=\"\",\"ERRO\",\"\")","v":"ERRO"},null,"Data de início da vigência da oferta. A partir desta data a oferta comercial encontra-se disponível para contratação junto do público, passando a estar disponível no simulador de preços."]
["2.4","Data de fim da aplicação dos preços da oferta comercial",null,"DD-MM-AAAA",null,null,"Deixar em branco caso não tenha uma data final definida. Data de fim da vigência da oferta. A partir desta data a oferta comercial deixará de estar disponível para contratação, saindo do simulador de preços."]
["2.5","Contratação *",null,null,null,null,"Deixar em branco os casos não aplicáveis. Se for uma oferta que obriga apenas contratação eletrónica, preencher apenas o campo \"Eletrónica\"."]
[null,"2.5.1 - Eletrónica",null,"E-mail/ Web",{"$f":"+IF(OR(C23<>\"\",C24<>\"\",C25<>\"\"),\"\",\"ERRO\")","v":"ERRO"},null,"E-mail ou endereço web para contratação da oferta."]
[null,"2.5.2 - Presencial",null,"Web",{"$f":"+IF(OR(C23<>\"\",C24<>\"\",C25<>\"\"),\"\",\"ERRO\")","v":"ERRO"},null,"Indicar um endereço web com a localização dos centros de atendimento presencial, por exemplo página de Contactos na página web do comercializador."]
[null,"2.5.3 - Telefone",null,"Número",{"$f":"+IF(OR(C23<>\"\",C24<>\"\",C25<>\"\"),\"\",\"ERRO\")","v":"ERRO"},null,"Contacto telefónico para contratação da oferta."]
["2.6","Faturação *"]
[null,"2.6.1 - Eletrónica",null,"Escolha",{"$f":"+IF(AND(C27=FALSE,C28=FALSE),\"ERRO\",\"\")","v":"ERRO"},null,"Deixar em branco os casos não aplicáveis."]
[null,"2.6.2 - Papel",null,"Escolha",{"$f":"+IF(AND(C27=FALSE,C28=FALSE),\"ERRO\",\"\")","v":"ERRO"},null,"Deixar em branco os casos não aplicáveis."]
["2.7","Pagamento *"]
[null,"2.7.1 - Débito direto em conta",null,"Escolha",{"$f":"+IF(AND(C30=FALSE,C31=FALSE,C32=FALSE),\"ERRO\",\"\")","v":"ERRO"},null,"Deixar em branco os casos não aplicáveis."]
[null,"2.7.2 - Multibanco / Transferência bancária",null,"Escolha",{"$f":"+IF(AND(C30=FALSE,C31=FALSE,C32=FALSE),\"ERRO\",\"\")","v":"ERRO"},null,"Deixar em branco os casos não aplicáveis."]
[null,"2.7.3 - Loja / Agente autorizado",null,"Escolha",{"$f":"+IF(AND(C30=FALSE,C31=FALSE,C32=FALSE),\"ERRO\",\"\")","v":"ERRO"},null,"Deixar em branco os casos não aplicáveis."]
["2.8","Meios de atendimento *"]
[null,"2.8.1 - Por escrito",null,"Escolha",{"$f":"+IF(AND(C35=FALSE,C36=FALSE,C34=FALSE,C37=FALSE),\"ERRO\",\"\")","v":"ERRO"},null,"Deixar em branco os casos não aplicáveis."]
[null,"2.8.2 - Presencial",null,"Escolha",{"$f":"+IF(AND(C35=FALSE,C36=FALSE,C34=FALSE,C37=FALSE),\"ERRO\",\"\")","v":"ERRO"},null,"Deixar em branco os casos não aplicáveis."]
[null,"2.8.3 - Telefónico",null,"Escolha",{"$f":"+IF(AND(C35=FALSE,C36=FALSE,C34=FALSE,C37=FALSE),\"ERRO\",\"\")","v":"ERRO"},null,"Deixar em branco os casos não aplicáveis."]
[null,"2.8.4 - Eletrónico",null,"Escolha",{"$f":"+IF(AND(C35=FALSE,C36=FALSE,C34=FALSE,C37=FALSE),\"ERRO\",\"\")","v":"ERRO"},null,"Deixar em branco os casos não aplicáveis."]
["2.9","Detalhe as várias modalidades de faturação. *",null,"Texto",{"$f":"+IF(C38=\"\",\"ERRO\",\"\")","v":"ERRO"},null,"Por exemplo: faturação mensal, bimestral, conta certa, etc."]
["2.10","A oferta tem fidelização associada? *",null,"Escolha",{"$f":"+IF(OR(C39=\"\",C39=0),\"ERRO\",\"\")","v":"ERRO"},null,"Indicar se a oferta apresenta fidelização associada ou não. Para um preenchimento automático deve ser tido em conta a seguinte codificação: 1=Não, 2=Sim"]
[null,"2.10.1 - Descrição das cláusulas de fidelização, incluindo a penalização por rescisão antecipada.",null,"Texto",{"$f":"+IF(AND(C39=2,C40=\"\"),\"ERRO\",\"\")","v":""},null,"Descrição das cláusulas de fidelização, duração, penalidades…."]
["2.11","Gás com origem 100% renovável e/ou de baixo teor em carbono? *",null,"Escolha",{"$f":"+IF(OR(C41=\"\",C41=0),\"ERRO\",\"\")","v":"ERRO"},null,"Indicar se a oferta apresenta gás 100% renovável ou de baixo teor em carbono. Para um preenchimento automático deve ser tido em conta a seguinte codificação: 1=Não, 2=Sim"]
[null,"2.11.1 Detalhe (obrigatório) acerca da origem do gás (gases de origem renovável ou gases de baixo teor em carbono)",null,null,{"$f":"+IF(AND(C41=2,C42=\"\"),\"ERRO\",\"\")","v":""},null,"Descrição da origem do gás (gases renováveis ou gases de baixo teor em carbono)."]
["2.12","Oferta Condicionada? *",null,"Escolha",{"$f":"+IF(OR(C43=\"\",C43=0,AND($C$43=1,C44<>\"\")),\"ERRO\",\"\")","v":"ERRO"},null,"Indicar se a oferta apresenta condições contratuais que condicionam a sua subscrição. Para um preenchimento automático deve ser tido em conta a seguinte codificação: 1=Não, 2=Sim"]
[null,"2.12.1 - Detalhe as restrições que condicionam a oferta comercial.",null,"Texto",{"$f":"+IF(AND(C43=2,C44=\"\"),\"ERRO\",\"\")","v":""},null,"Descrição da restrição que torna a oferta condicionada. Exemplos:\n1) Obriga a parcerias com outras instituições? \n2) Destina-se a algum tipo de equipamento específico?\n3) Destina-se a um grupo de consumidores específico? "]
["2.13","Descrição de outros benefícios relevantes.\n(com exceção dos reembolsos/descontos detalhados nos campos 4.1 e 4.2)",null,"Texto",null,null,"Por exemplo vantagens ou benefícios em parceiros comerciais."]
["2.14","Indique as políticas de atualização de preços durante a vigência do contrato *"]
[null,"2.14.1 - Os preços são atualizados em função das tarifas de acesso às redes? *",null,"Escolha",{"$f":"+IF(AND(C47=\"\",C47=0),\"ERRO\",\"\")","v":"ERRO"},null,"Selecionar no caso de os preços da oferta comercial serem atualizados automaticamente em função das tarifas de acesso às redes."]
[null,"2.14.2 - Os preços são atualizados automaticamente em função de outros parâmetros? *",null,"Escolha",{"$f":"+IF(AND(C48=\"\",C48=0),\"ERRO\",\"\")","v":"ERRO"},null,"Selecionar no caso de os preços da oferta comercial serem atualizados em função de outros parâmetros automaticamente."]
[null,"2.14.3 - Descreva as políticas de atualização da tabela de preços indicada nas alíneas anteriores.",null,"Texto",{"$f":"+IF(AND(C48=TRUE,C49=\"\"),\"ERRO\",\"\")","v":""},null,"Referir políticas de alteração de da tabela de preços ou se os mesmos se mantêm, por exemplo: em janeiro em função das TAR no caso da energia elétrica, ou em janeiro em função do IPC."]
[null,"2.14.4 - Condições de preço desta oferta que não se mantêm na renovação automática do contrato.",null,"Texto",null,null,"Referir quais as condições de preços após a renovação automática do contrato ou indicar se as mesmas se mantêm vigentes. Por exemplo: após a renovação do contrato não se aplica o desconto de x% face à oferta base?..."]
["2.15","A oferta comercial apresenta condições de indexação de preços de gás? *",null,"Escolha",{"$f":"+IF(OR(C51=\"\",C51=0),\"ERRO\",\"\")","v":"ERRO"},null,"Indicar se a oferta apresenta condições de preços indexados de gás. Para um preenchimento automático deve ser tido em conta a seguinte codificação: 1=Não, 2=Sim"]
[null,"2.15.1 - Descreva os mecanismos de preços indexados e a composição da fórmula de indexação.\n\n               Se selecionou o campo 2.15 com opção \"Sim\", preencha o separador \"Preços_ Index\".",null,"Texto",{"$f":"+IF(AND(C51=2,C52=\"\"),\"ERRO\",\"\")","v":""},null,"Referir eventuais mecanismos de indexação de preços, por exemplo em função do MIBGAS ou outro. Descrever detalhadamente a fórmula do preço de energia e os respetivos indexantes."]
[null,"               Se selecionou o campo 2.15 com opção \"Não\", preencha o separador \"Preços_ Fixos\"."]
[]
["3.","Serviços adicionais obrigatórios"]
["3.1","Obrigatoriedade de contratação de serviços adicionais? *",null,"Escolha",{"$f":"+IF(OR(C56=\"\",C56=0,AND(C56=1,OR(C57<>\"\",C58<>\"\",C59<>\"\"))),\"ERRO\",\"\")","v":"ERRO"},null,"Indicar se a oferta apresenta serviços adicionais obrigatórios. Para um preenchimento automático deve ser tido em conta a seguinte codificação: 1=Não, 2=Sim"]
[null,"3.1.1 - Custo dos serviços adicionais obrigatórios (EUR/ano) sem IVA.",null,"EUR/ano",{"$f":"+IF(AND(C56=2,C57=\"\"),\"ERRO\",\"\")","v":""},null,"Indicar o valor anual do(s) serviço(s) adicional(ais) obrigatório(s), antes da aplicação do IVA."]
[null,"3.1.2 - Custo dos serviços adicionais obrigatórios (EUR/ano) após a aplicação da taxa de IVA aplicável.",null,"EUR/ano",{"$f":"+IF(AND(C56=2,C58=\"\"),\"ERRO\",\"\")","v":""},null,"Indicar o valor anual do(s) serviço(s) adicional(ais) obrigatório(s), incluindo a aplicação da taxa de IVA relevante."]
[null,"3.1.3 - Descrição de todos os serviços adicionais obrigatórios.",null,"Texto",{"$f":"+IF(AND(C56=2,C59=\"\"),\"ERRO\",\"\")","v":""},null,"Descrição do(s) serviço(s) adicional(ais) obrigatório(s)."]
["3.2","Descrição de outros serviços adicionais opcionais relevantes.",null,"Texto",null,null,"Descrição do(s) serviço(s) adicional(ais) opcional(ais)."]
[]
["4.","Reembolsos/Descontos"]
["4.1","A oferta tem reembolsos/descontos aplicáveis a qualquer cliente? *",null,"Escolha",null,null,"Ver explicação na página Instruções. Estes reembolsos/descontos não devem estar refletidos na tabela de preços das folhas \"Preços_Fixos\" ou \"Preços_Index\". Para um preenchimento automático deve ser tido em conta a seguinte codificação: 1=Não, 2=Sim"]
[null,"4.1.1 - Reembolsos anuais (EUR/ano) após a aplicação da taxa de IVA aplicável.",null,"EUR/ano",{"$f":"+IF(AND($C$63=2,$C$67=\"\",$C$65=\"\",$C$64=\"\",$C$66=\"\"),\"ERRO\",\"\")","v":""},null,"Indicar o valor anual do reembolso/desconto associado à oferta comercial, incluindo a aplicação da taxa de IVA relevante."]
[null,"4.1.2 - Gás: reembolsos/descontos em % a aplicar no Termo Fixo.",null,"%",{"$f":"+IF(AND($C$63=2,$C$67=\"\",$C$65=\"\",$C$64=\"\",$C$66=\"\"),\"ERRO\",\"\")","v":""},null,"Indicar o reembolso/desconto percentual aplicável ao termo fixo do gás natural."]
[null,"4.1.3 - Gás: reembolsos/descontos em % a aplicar no Termo de Energia.",null,"%","",null,"Indicar o reembolso/desconto percentual aplicável ao termo de energia do gás natural."]
[null,"4.1.4 - Gás: reembolsos/descontos em função da energia sem IVA.",null,"EUR/kWh","",null,"Indicar reembolsos/descontos em EUR/kWh (sem IVA) adicionais que não correspondam a percentagens sobre os valores da tabela de preços do gás natural."]
[null,"4.1.5 - Descrição dos reembolsos/descontos da oferta comercial.",null,"Texto",{"$f":"+IF(AND($C$63=2,C68=\"\"),\"ERRO\",\"\")","v":""},null,"Descrição de todos os reembolsos/descontos associados à oferta comercial."]
[]
["4.2","A oferta tem reembolsos/descontos aplicáveis apenas para os novos clientes? *",null,null,{"$f":"+IF(OR(C70=\"\",C70=0,AND(C70=1,OR(C71<>\"\",C72<>\"\",C73<>\"\",C74<>\"\",C75<>\"\"))),\"ERRO\",\"\")","v":"ERRO"},null,"Ver explicação na página Instruções. Estes reembolsos/descontos não devem estar refletidos na tabela de preços das folhas \"Preços_Fixos\" ou \"Preços_Index\". Para um preenchimento automático deve ser tido em conta a seguinte codificação: 1=Não, 2=Sim"]
[null,"4.2.1 - Descontos anuais (EUR/ano) após a aplicação da taxa de IVA aplicável.",null,"EUR/ano",{"$f":"+IF(AND($C$70=2,$C$74=\"\",$C$72=\"\",$C$71=\"\",$C$73=\"\",$C$75=\"\"),\"ERRO\",\"\")","v":""},null,"Indicar o valor anual do reembolso/desconto associado à oferta comercial, incluindo a aplicação da taxa de IVA relevante."]
[null,"4.2.2 - Gás: reembolsos/descontos em % a aplicar no Termo Fixo.",null,"%",{"$f":"+IF(AND($C$70=2,$C$74=\"\",$C$72=\"\",$C$71=\"\",$C$73=\"\",$C$75=\"\"),\"ERRO\",\"\")","v":""},null,"Indicar o reembolso/desconto percentual aplicável ao termo fixo do gás natural."]
[null,"4.2.3 - Gás: reembolsos/descontos em % a aplicar no Termo de Energia.",null,"%","",null,"Indicar o reembolso/desconto percentual aplicável ao termo de energia do gás natural."]
[null,"4.2.4 - Gás: reembolso/desconto em função da energia sem IVA.",null,"EUR/kWh","",null,"Indicar reembolsos/descontos em EUR/kWh (sem IVA) adicionais que não correspondam a percentagens sobre os valores da tabela de preços do gás natural."]
[null,"4.2.5 - Descrição dos reembolsos/descontos aplicáveis apenas para os novos clientes.",null,"Texto",{"$f":"+IF(AND($C$70=2,C75=\"\"),\"ERRO\",\"\")","v":""},null,"Descrição de todos os reembolsos/descontos apenas para novos clientes associados à oferta comercial."]
[]
["5.","Limites anuais de consumo"]
["5.1","Gás",null,null,null,null,"Ver explicação na página Instruções. Preencher apenas se os limites anuais de consumo forem específicos à oferta comercial."]
[null,"5.1.1 - Consumo mínimo anual (m3).",null,"m3/ano",null,null,"Indicar o valor anual MÍNIMO de consumo de gás natural em m3."]
[null,"5.1.2 - Consumo máximo anual (m3).",null,"m3/ano",null,null,"Indicar o valor anual MÁXIMO de consumo de gás natural em m3."]

{"sheet":"Preços_Fixos","index":3,"n_rows":19,"n_cols":19,"rows_kept":19,"cut":false,"hidden":false,"merged":[[14,1,14,3],[14,8,14,10],[13,1,13,3],[13,8,13,10],[5,2,5,3],[5,9,5,10],[10,1,10,3],[10,8,10,10],[11,1,12,1],[11,2,11,3],[11,8,12,8],[11,9,11,10],[12,2,12,3],[12,9,12,10],[8,2,8,3],[8,9,8,10]]}
[]
["Fornecimento Gás BP>10 000 m3 - 1.º Período",null,null,null,null,null,null,null,"Fornecimento Gás BP>10 000 m3 - 2.º Período",null,null,null,null,null,null,null,"vazio","erros"]
[]
["Duração 1.º período (meses) =",null,null,"*",null,null,null,null,"Duração 2.º período (meses) =",null,null,null,null,null,null,null,{"$f":"+IF(OR(E6=3,E6=\"\"),COUNTA(F11:F15,C4,K4,M11:M15,E9),COUNTA(F11:F15,C4,K4,M11:M15,E6,E9))","v":0},{"$f":"+COUNTIF(B18,S4)+COUNTIF(I18,S4)","v":0},"Campos obrigatórios por preencher"]
[null,null,{"$f":"IF(OR(Detalhe!C51=2,Detalhe!C51=\"\",COUNT(F11:F15,M11:M15,E6,E9:F9)=0),\"\",\n\nIF(AND($C$4=\"\",$K$4=\"\",Detalhe!$C$19=\"\"),\"\",IF(AND($C$4+$K$4<>Detalhe!$C$19,OR(Detalhe!$C$18=2,Detalhe!$C$18=4,Detalhe!$C$18=1)),\"Erro - O número total de meses não é igual ao definido no campo 2.2 da folha 'Detalhe'.\",\"\")))","v":""},null,null,null,null,null,null,null,{"$f":"IF(OR(Detalhe!C51=2,Detalhe!C51=\"\",COUNT(M11:M15,F11:F15,E6,L9:M9)=0),\"\",\n\nIF(AND($C$4=\"\",$K$4=\"\",Detalhe!$C$19=\"\"),\"\",IF(AND($C$4+$K$4<>Detalhe!$C$19,OR(Detalhe!$C$18=2,Detalhe!$C$18=4,Detalhe!$C$18=1)),\"Erro - O número total de meses não é igual ao definido no campo 2.2 da folha 'Detalhe'.\",\"\")))","v":""},null,null,null,null,null,null,{"$f":"+COUNTIF(C5,S5)+COUNTIF(K5,S5)","v":0},"Erro - O número total de meses não é igual ao definido no campo 2.2 da folha 'Detalhe'."]
[null,null,"Opção tarifária",null,null,"*",null,null,null,"Opção tarifária",null,null,null,null,null,null,null,{"$f":"+COUNTIF(B18,S6)+COUNTIF(I18,S6)","v":0},"Não se aplica capacidade utilizada"]
[]
[null,null,null,null,"Mínimo","Máximo",null,null,null,null,null,"Mínimo","Máximo",null,null,null,null,{"$f":"+COUNTIF(B18,S8)+COUNTIF(I18,S8)","v":0},"Apagar valores do 2.º período"]
[null,null,"Escalão (m3/ano)",null,null,null,"*",null,null,"Escalão (m3/ano)",null,{"$f":"+IF(K4>0,E9,\"\")","v":""},{"$f":"+IF(K4>0,F9,\"\")","v":""},{"$f":"+IF($K$4>0,IF($E$6>=1,\"*\",\"\"),\"\")","v":""},null,null,null,{"$f":"+COUNTIF(B19,S9)","v":0},"Oferta a preços indexados: não preencher esta folha"]
[null,null,null,null,null,null,null,null,null,null,null,","]
[null,"Termo tarifário fixo",null,null,"EUR/dia",null,{"$f":"+IF(AND($E$6>=1,E6<3),\"*'\",\"\")","v":""},null,"Termo tarifário fixo",null,null,"EUR/dia",null,{"$f":"+IF($K$4>0,IF(AND($E$6>=1,E6<3),\"*'\",\"\"),\"\")","v":""},null,null,{"$f":"+Q4","v":0},{"$f":"SUM(R4:R9)","v":0}]
[null,"Energia","Fora de Vazio",null,"EUR/kWh",null,{"$f":"+IF(AND($E$6>=1,E6<3),\"*'\",\"\")","v":""},null,"Energia","Fora de Vazio",null,"EUR/kWh",null,{"$f":"+IF($K$4>0,IF(AND($E$6>=1,E6<3),\"*'\",\"\"),\"\")","v":""}]
[null,null,"Vazio",null,"EUR/kWh",null,{"$f":"+IF(AND($E$6>=1,E6<3),\"*'\",\"\")","v":""},null,null,"Vazio",null,"EUR/kWh",null,{"$f":"+IF($K$4>0,IF(AND($E$6>=1,E6<3),\"*'\",\"\"),\"\")","v":""}]
[null,"Capacidade Utilizada",null,null,"EUR/(kWh/dia)/dia",null,{"$f":"+IF(AND($E$6=1,E6<3),\"*'\",\"\")","v":""},null,"Capacidade Utilizada",null,null,"EUR/(kWh/dia)/dia",null,{"$f":"+IF($K$4>0,IF(AND($E$6=1,E6<3),\"*'\",\"\"),\"\")","v":""}]
[null,"Capacidade Utilizada à Entrada",null,null,"EUR/(kWh/dia)/dia",null,{"$f":"+IF(AND($E$6>=1,E6<3),\"*'\",\"\")","v":""},null,"Capacidade Utilizada à Entrada",null,null,"EUR/(kWh/dia)/dia",null,{"$f":"+IF($K$4>0,IF(AND($E$6>=1,E6<3),\"*'\",\"\"),\"\")","v":""}]
[]
["*","Os campos identificados com um asterisco são de preenchimento obrigatório!"]
[null,{"$f":"+IF(AND(C4=\"\",OR(E6=\"\",E6=3),(COUNT(E9)+COUNTIF(G11:G15,\"*'\"))=0),\"\",\n\nIF(B19<>\"\",\"\",\n\nIF(AND(C4>0,E6=1,(COUNT(E9)+COUNT(F11:F15))=6),\"\",IF(AND(C4>0,E6=2,(COUNT(E9)+COUNT(F11:F13,F15))=5),IF(AND(C4>0,E6=2,(COUNT(E9)+COUNT(F11:F15))=6),\"Não se aplica capacidade utilizada\",\"\"),\"Campos obrigatórios por preencher\"))))","v":""},null,null,null,null,null,null,{"$f":"+IF(AND(K4=\"\",OR(E6=\"\",E6=3),(COUNT(L9)+COUNTIF(N11:N15,\"*'\"))=0),\"\",IF(AND(C4=Detalhe!C19,COUNT(L9,M11:M15)>0),\"Apagar valores do 2.º período\",IF(C4=Detalhe!C19,\"\",\n\nIF(B19<>\"\",\"\",\n\nIF(AND(K4>0,E6=1,(COUNT(L9)+COUNT(M11:M15))=6),\"\",IF(AND(K4>0,E6=2,(COUNT(L9)+COUNT(M11:M13,M15))=5),IF(AND(K4>0,E6=2,(COUNT(L9)+COUNT(M11:M15))=6),\"Não se aplica capacidade utilizada\",\"\"),\"Campos obrigatórios por preencher\"))))))","v":""}]
[null,{"$f":"+IF(AND(Detalhe!C51=2,Q11>0),\"Oferta a preços indexados: não preencher esta folha\",\"\")","v":""}]

{"sheet":"Preços_Index","index":4,"n_rows":59,"n_cols":28,"rows_kept":59,"cut":false,"hidden":false,"merged":[[11,1,11,9],[58,1,58,16],[38,5,38,6],[39,5,39,6],[36,3,36,4],[37,3,37,4],[38,3,38,4],[39,3,39,4],[33,2,33,10],[17,4,17,5],[25,4,25,7],[36,5,36,6],[37,5,37,6]]}
[]
[]
[]
["Fornecimento - Gás: detalhe das condições de preços indexados"]
[null,null,null,null,null,null,null,null,null,null,null,null,null,null,null,null,null,null,null,null,null,null,null,null,null,"vazio","erros"]
[null,"Nas situações em que se aplicam condições de preços indexados/dinâmicos, os comercializadores deverão preencher os seguintes campos em branco, de modo a",null,null,null,null,null,null,null,null,null,null,null,null,null,null,null,null,null,null,null,null,null,null,null,{"$f":"+IF(OR(F28=\"\",F28=3),COUNTA(E20:F23,G20,E26,E31,F38:G40),COUNTA(E20:F23,G20,E26,F28,E31,F38:G40))","v":0},{"$f":"+COUNTIF(H20,AB6)","v":0},"Indicar unidade do indexante de mercado."]
[null,"detalhar os valores dos respetivos indexantes associados às condições de indexação da oferta comercial.",null,null,null,null,null,null,null,null,null,null,null,null,null,null,null,null,null,null,null,null,null,null,null,null,{"$f":"+COUNTIF(F41,AB7)+COUNTIF(E25,AB7)","v":0},"Os campos * são de preenchimento obrigatório"]
[null,null,null,null,null,null,null,null,null,null,null,null,null,null,null,null,null,null,null,null,null,null,null,null,null,null,{"$f":"+COUNTIF(E27,AB8)","v":0},"Indicar referencial de indexante de mercado"]
[null,"Para efeitos do reporte à ERSE, devem ser transpostos os elementos que compõem a fórmula de indexação dos preços para a expressão apresentada, através da",null,null,null,null,null,null,null,null,null,null,null,null,null,null,null,null,null,null,null,null,null,null,null,null,{"$f":"+COUNTIF(E29,AB9)","v":0},"Indicar opção horária"]
[null,"decomposição e simplificação matemática:",null,null,null,null,null,null,null,null,null,null,null,null,null,null,null,null,null,null,null,null,null,null,null,null,{"$f":"+COUNTIF(E32,AB10)","v":0},"Indicar escalão de consumo"]
[null,null,null,null,null,null,null,null,null,null,null,null,null,null,null,null,null,null,null,null,null,null,null,null,null,null,{"$f":"+COUNTIF(F41,AB11)","v":0},"Não se aplica capacidade utilizada"]
[null,"Preço total (EUR) = Componente Variável (EUR/kWh) x Consumo (kWh)  + Componente Fixa (EUR/dia) x N.º dias de consumo",null,null,null,null,null,null,null,null,null,null,null,null,null,null,null,null,null,null,null,null,null,null,null,null,{"$f":"+COUNTIF(E13,AB12)","v":0},"Oferta a preços fixos: não preencher esta folha"]
[null,null,null,null,{"$f":"+IF(AND(Detalhe!C51=1,Z13>0),\"Oferta a preços fixos: não preencher esta folha\",\"\")","v":""},null,null,null,null,null,null,null,null,null,null,null,null,null,null,null,null,null,null,null,null,{"$f":"+Z6","v":0},{"$f":"SUM(AA6:AA12)","v":0}]
[]
[null,null,"Componente Variável (EUR/kWh) = A x α + β + TAR(Energia) BP>"]
[]
[]
[null,null,null,null,"Energia"]
[null,null,null,"Aux","Fora de Vazio","Vazio","Unidade"]
[null,null,null,"A *",null,null,null,{"$f":"+IF(AND(COUNT(E20:F20)>0,G20=\"\"),\"Indicar unidade do indexante de mercado.\",\"Valor do indexante de mercado referente ao mês anterior. Preencher a unidade de referência associada ao indexante de mercado. \")","v":"Valor do indexante de mercado referente ao mês anterior. Preencher a unidade de referência associada ao indexante de mercado. "}]
[null,null,null,"α *",null,null,{"$f":"IF(G20=\"\",\"\",IF(OR(G20=\"€/kWh\",G20=\"eur/kWh\"),1,\"kWh/\"&RIGHT(G20,LEN(G20)-FIND(\"/\",G20))))","v":""},"Constante multiplicativa da componente variável da fórmula de indexação do preço de energia."]
[null,null,null,"β *",null,null,"EUR/kWh","Constante aditiva da componente variável da fórmula de indexação do preço de energia."]
[null,null,null,"TAR(Energia) BP> *",null,null,"EUR/kWh","Preencher o termo de energia das tarifas de acesso às redes em vigor, caso sejam aplicáveis."]
[null,null,null,"Componente Variável BP>",{"$f":"+IF(E20=\"\",\"\",E20*E21+E22+E23)","v":""},{"$f":"+IF(F20=\"\",\"\",F20*F21+F22+F23)","v":""},"EUR/kWh","Totalizador."]
[null,null,null,null,{"$f":"IF(OR(COUNT(E20:F23)=0,COUNT(E20:F23)=8),\"\",\"Os campos * são de preenchimento obrigatório\")","v":""}]
[null,null,null,"Indexante de mercado: A *",null,null,null,null,"Indicar o referencial de indexante de mercado associado à fórmula de indexação do preço de energia. Por exemplo: MIBGAS GWDES, MIBGAS GDAES_D+1, etc."]
[null,null,null,null,{"$f":"IF(COUNT(E20:F23)=0,\"\",IF(E26=\"\",\"Indicar referencial de indexante de mercado\",\"\"))","v":""}]
[null,null,null,"Opção tarifária *",null,3,"Indicar a opção tarifária associada à oferta comercial."]
[null,null,null,null,{"$f":"IF(COUNT(E20:F23)=0,\"\",IF(OR(F28=\"\",F28=3),\"Indicar opção horária\",\"\"))","v":""}]
[null,null,null,null,"Mínimo","Máximo"]
[null,null,null,"Escalão de consumo (m3/ano) *",null,null,"Indicar o intervalos mínimo e máximo de consumo associado à oferta comercial."]
[null,null,null,null,{"$f":"IF(COUNT(E20:F23)=0,\"\",IF(COUNT(E31)=1,\"\",\"Indicar escalão de consumo\"))","v":""}]
[]
[null,null,"Componente Fixa (EUR/(dia) = Termo Fixo (EUR/dia) + Capacidade (EUR/dia)\n\n             Capacidade (EUR/dia) = Capacidade Utilizada (EUR/dia) + Capacidade Utilizada à Entrada (EUR/dia)\n\n             Capacidade Utilizada (EUR/dia) = Capacidade Utilizada (EUR/(kWh/dia)/dia) x Capacidade Utilizada (kWh/dia)\n\n             Capacidade Utilizada à Entrada (EUR/dia) =  Capacidade Utilizada à Entrada (EUR/(kWh/dia)/dia) x Capacidade (kWh/dia)"]
[]
[]
[null,null,null,"BP> 10 000 m3",null,"Preço",null,"Unidade"]
[null,null,{"$f":"+IF(AND($F$28>=1,$F$28<3),\"*'\",\"\")","v":""},"Termo tarifário fixo ",null,null,null,"EUR/dia","Preço do termo tarifário fixo."]
[null,null,{"$f":"+IF($F$28=1,\"*'\",\"\")","v":""},"Capacidade Utilizada",null,null,null,"EUR/(kWh/dia)/dia","Preço do termo de capacidade utilizada."]
[null,null,{"$f":"+IF(AND($F$28>=1,$F$28<3),\"*'\",\"\")","v":""},"Capacidade Utilizada à Entrada",null,null,null,"EUR/(kWh/dia)/dia","Preço do termo da capacidade utilizada à entrada."]
[null,null,null,null,null,{"$f":"IF(AND(OR($F$28=0,$F$28=3),COUNTIF(C38:C40,\"*'\")=0),\"\",\n\nIF(AND($F$28=1,COUNT(F38:F40)=3),\"\",IF(AND($F$28=2,COUNT(F38,F40)=2),IF(AND($F$28=2,COUNT(F38:F40)=3),\"Não se aplica capacidade utilizada\",\"\"),\n\n\"Os campos * são de preenchimento obrigatório\")))","v":""}]
[]
[null,"onde,"]
[null,"A = Valor do indexante de mercado associada à oferta comercial durante o último mês anterior à data do reporte, EUR/kWh."]
[null,"α = Constante multiplicativa."]
[null,"β = Constante aditiva, EUR/kWh."]
[null,"TAR(Energia) BP> = Valor das tarifas de acesso às redes em Baixa Pressão maior que 10 000 m3, EUR/kWh."]
[null,"Componente variável = Preço da componente variável da fórmula de indexação, EUR/kWh."]
[null,"Indexante de mercado: A = indexante de mercado associado à fórmula de indexação do preço da oferta comercial."]
[null,"Termo tarifário fixo = preço do termo tarifário fixo, em EUR/dia."]
[null,"Capacidade Utilizada = preço do termo de potência contratada, em EUR/(kWh/dia)/dia."]
[null,"Capacidade Utilizada à Entrada = preço da potência de horas de ponta, em EUR/(kWh/dia)/dia."]
[null,"Componente Fixa = Preço das componentes fixas da fórmula de indexação, em EUR/dia."]
[null,"* campos de preenchimento obrigatório (preencher apenas as células em branco)."]
[]
[]
["DISPOSIÇÕES DE REPORTE DE OFERTAS COMERCIAIS INDEXADAS OU DINÂMICAS"]
[]
[null,"O reporte das ofertas comerciais a preços indexados ou a preços dinâmicos obedece às seguintes especificações:\n\n- A identificação das ofertas como sendo indexadas ou dinâmicas é feita através da folha \"Detalhe\", devendo os correspondentes campos ser preenchidos com a opção \"Sim\". Devem ainda ser apresentados e descritos de forma sucinta os mecanismos e as características da fórmula de indexação de preços, assim como as suas várias componentes de faturação nos campos aí disponibilizados;\n- As ofertas comerciais devem ser comunicadas sempre que houver alterações nas componentes da fórmula de indexação ou atualizações nas tarifas de Acesso às Redes;\n- O reporte dos preços das ofertas deverá ser feita numa base mensal;\n- O incumprimento do envio da informação das ofertas indexadas ou dinâmicas de acordo com as indicações anteriores tem por consequência a exclusão da oferta comercial do simulador de preços da ERSE, até ao envio de uma nova comunicação de informação atualizada."]

{"sheet":"ERSE_Precos_Fixos","index":5,"n_rows":3,"n_cols":13,"rows_kept":3,"cut":false,"hidden":true,"merged":[]}
[]
[null,"#","COD_CRIA","COM","COD_Proposta","TF_GN","FV_GN","V_GN","Cap_Util","Cap_Ent","Opção Tarifária","Escalão Mínimo","Escalão Máximo"]
[null,1,{"$f":"+IF(Detalhe!$C$4=\"\",\"\",Detalhe!$C$4)","v":""},{"$f":"+IF(Detalhe!$C$5=\"\",\"\",Detalhe!$C$5)","v":""},{"$f":"+ERSE_Precos_Fixos!$D3&$A$4&\"_\"&ERSE_Aux!$C$3","v":{"$error":"#N/A"}},{"$f":"+IF(Preços_Fixos!F11=\"\",\"\",IF(AND(SUM(Preços_Fixos!$F$11:$F$15)>0,SUM(Preços_Fixos!$M$11:$M$15)=0),Preços_Fixos!F11,Preços_Fixos!F11*Preços_Fixos!$C$4/(SUM(Preços_Fixos!$C$4,Preços_Fixos!$K$4))+Preços_Fixos!M11*Preços_Fixos!$K$4/SUM(Preços_Fixos!$C$4,Preços_Fixos!$K$4)))","v":""},{"$f":"+IF(Preços_Fixos!F12=\"\",\"\",IF(AND(SUM(Preços_Fixos!$F$11:$F$15)>0,SUM(Preços_Fixos!$M$11:$M$15)=0),Preços_Fixos!F12,Preços_Fixos!F12*Preços_Fixos!$C$4/(SUM(Preços_Fixos!$C$4,Preços_Fixos!$K$4))+Preços_Fixos!M12*Preços_Fixos!$K$4/SUM(Preços_Fixos!$C$4,Preços_Fixos!$K$4)))","v":""},{"$f":"+IF(Preços_Fixos!F13=\"\",\"\",IF(AND(SUM(Preços_Fixos!$F$11:$F$15)>0,SUM(Preços_Fixos!$M$11:$M$15)=0),Preços_Fixos!F13,Preços_Fixos!F13*Preços_Fixos!$C$4/(SUM(Preços_Fixos!$C$4,Preços_Fixos!$K$4))+Preços_Fixos!M13*Preços_Fixos!$K$4/SUM(Preços_Fixos!$C$4,Preços_Fixos!$K$4)))","v":""},{"$f":"+IF(Preços_Fixos!F14=\"\",\"\",IF(AND(SUM(Preços_Fixos!$F$11:$F$15)>0,SUM(Preços_Fixos!$M$11:$M$15)=0),Preços_Fixos!F14,Preços_Fixos!F14*Preços_Fixos!$C$4/(SUM(Preços_Fixos!$C$4,Preços_Fixos!$K$4))+Preços_Fixos!M14*Preços_Fixos!$K$4/SUM(Preços_Fixos!$C$4,Preços_Fixos!$K$4)))","v":""},{"$f":"+IF(Preços_Fixos!F15=\"\",\"\",IF(AND(SUM(Preços_Fixos!$F$11:$F$15)>0,SUM(Preços_Fixos!$M$11:$M$15)=0),Preços_Fixos!F15,Preços_Fixos!F15*Preços_Fixos!$C$4/(SUM(Preços_Fixos!$C$4,Preços_Fixos!$K$4))+Preços_Fixos!M15*Preços_Fixos!$K$4/SUM(Preços_Fixos!$C$4,Preços_Fixos!$K$4)))","v":""},{"$f":"+IF(ERSE_Aux!C90=\"\",\"\",ERSE_Aux!C90)","v":{"$error":"#N/A"}},{"$f":"+IF(Preços_Fixos!E9=\"\",\"\",Preços_Fixos!E9)","v":""},{"$f":"+IF(Preços_Fixos!F9=\"\",\"\",Preços_Fixos!F9)","v":""}]

{"sheet":"ERSE_Precos_Index","index":6,"n_rows":3,"n_cols":23,"rows_kept":3,"cut":false,"hidden":true,"merged":[]}
[]
[null,"#","COD_CRIA","COM","COD_Proposta","TF_GN","FV_GN","V_GN","Cap_Util","Cap_Ent","A_FV","A_V","alfa_FV","alfa_V","beta_FV","beta_V","TAR_FV","TAR_V","Opção Tarifária","Escalão Mínimo","Escalão Máximo","Indexante_GN","Unidade_indexante_ELE"]
[null,1,{"$f":"+IF(Detalhe!$C$4=\"\",\"\",Detalhe!$C$4)","v":""},{"$f":"+IF(Detalhe!$C$5=\"\",\"\",Detalhe!$C$5)","v":""},{"$f":"+ERSE_Precos_Index!$D3&$A$4&\"_\"&ERSE_Aux!$C$3","v":{"$error":"#N/A"}},{"$f":"+IF(Preços_Index!F38=\"\",\"\",Preços_Index!F38)","v":""},{"$f":"+IF(Preços_Index!E24=\"\",\"\",Preços_Index!E24)","v":""},{"$f":"+IF(Preços_Index!F24=\"\",\"\",Preços_Index!F24)","v":""},{"$f":"+IF(Preços_Index!F39=\"\",\"\",Preços_Index!F39)","v":""},{"$f":"+IF(Preços_Index!F40=\"\",\"\",Preços_Index!F40)","v":""},{"$f":"+IF(Preços_Index!E20=\"\",\"\",Preços_Index!E20)","v":""},{"$f":"+IF(Preços_Index!F20=\"\",\"\",Preços_Index!F20)","v":""},{"$f":"+IF(Preços_Index!E21=\"\",\"\",Preços_Index!E21)","v":""},{"$f":"+IF(Preços_Index!F21=\"\",\"\",Preços_Index!F21)","v":""},{"$f":"+IF(Preços_Index!E22=\"\",\"\",Preços_Index!E22)","v":""},{"$f":"+IF(Preços_Index!F22=\"\",\"\",Preços_Index!F22)","v":""},{"$f":"+IF(Preços_Index!E23=\"\",\"\",Preços_Index!E23)","v":""},{"$f":"+IF(Preços_Index!F23=\"\",\"\",Preços_Index!F23)","v":""},{"$f":"+IF(ERSE_Aux!C90=\"\",\"\",ERSE_Aux!C90)","v":{"$error":"#N/A"}},{"$f":"+IF(Preços_Index!E31=\"\",\"\",Preços_Index!E31)","v":""},{"$f":"+IF(Preços_Index!F31=\"\",\"\",Preços_Index!F31)","v":""},{"$f":"IF(Preços_Index!$E$26=\"\",\"\",Preços_Index!$E$26)","v":""},{"$f":"IF(Preços_Index!$G$20=\"\",\"\",Preços_Index!$G$20)","v":""}]

{"sheet":"ERSE_CondComerciais","index":7,"n_rows":3,"n_cols":61,"rows_kept":3,"cut":false,"hidden":true,"merged":[]}
[null,null,"1.0_Comercializador",null,"1.3_Nome_proposta","1.3.1_Modalidade","1.5_SegmentoOferta",null,null,"2.1_Fornecimento","2.2_Duração contrato","2.3_Data início","2.4_Data de fim","2.5_Web-Pres-Telef","2.6_FE-papel","2.7_DD-MB-Loja","2.8_Escr-Pres-Tel-Elec","2.10_Fidelização Não/Sim","2.11_GN 100%Renovavel Não/Sim","2.13_RestricoesAdic Não/Sim","2.15_PrecosIndex GN _Não/Sim","3.1_ServicosAdic Não/Sim","Não/Sim","4.1_reembolsos Não/Sim","4.2_desconto Novos Clientes Não/Sim","3.1.1_ServAdic sem IVA (€/ano)","3.1.2_ServAdic com IVA (€/ano)","4.1.1_ReembFixo","4.1.2_ReembTFixo_ELE","4.1.3_ReembTVaria_ELE","4.1.4_ReembEnergia_ELE","4.2.1_ReembFixo","4.2.2_ReembTFixo_ELE","4.2.3_ReembTVaria_ELE","4.2.4_ReembEnergia_ELE","1.3_Detalhe",null,"1.6_WebComercializador","1.7_LinkOfertaCom","1.8_LinkFichaPadronizada","1.9_LinkCondiçõesGerais","1.10_ContactoComTEL","1.11_ContactoEletronic","2.5.Contrat_Elect","2.5.Contrat_Presencial","2.5.Contrat_Telef","2.5_Elec|Presen|Tel","2.6_Ele|Papel","2.7_DD|MB/Transf|Loja/Agente","2.8_Escrito|Presen|Tel|Ele","2.9_ModalidadeFaturacao","2.10.1_Fidelização","2.13_RestricoesAdicionais","2.14_Detalhe OutrosDescontos/beneficios","2.15_Atualizacao preços","3.1.2_DetalheSerAdic","3.2_DetalheOutrosSerAdic","4.1.8/4.2.8_DetalheReembolsos e Detalhe Desconto Novo Cliente","Preços diferentes no periodo","1.1_CRIA","1.2_Marca Comercial"]
[null,"#","COM","CODProposta","NomeProposta","TxTModalidade","Segmento","ConsIni_GN","ConsFim_GN","Fornecimento","DuracaoContrato","Data ini","Data fim","FiltroContratacao","Filtrofaturacao","FiltroPagamento","FiltroAtendimento","FiltroFidelização","FiltroRenovavel","FiltroRestrições","FiltroPrecosIndex_GN","FiltroServicosAdic","FiltroTarifaSocial","FiltroReembolsos","Filtro Novos Clientes","CustoServicos_s/IVA (€/ano)","CustoServicos_c/IVA (€/ano)","ReembFixo (€/ano)","ReembTF_GN (%)","ReembTW_GN (%)","ReembW_GN (€/kWh)","Desc. Fixo (€/ano) - Novo Cliente","Desc. TF_GN (%) - Novo Cliente","Desc. TW_GN (%) - Novo Cliente","Desc. W_GN (€/kWh) - Novo Cliente","TxTOferta","TxTERSE","LinkCOM","LinkOfertaCom","LinkFichaPadrao","LinkCondicoesGerais","ContactoComercialTel","ContactoWEBouMAIL","Contrat_Elect","Contrat_Presen","Contrat_Telef","TxTContratação","TxTFatura","TxTPagamento","TxTAtendimento","TxTFaturacao","TxTFidelização","TxT Condicionadas","DetalheOutrosBen ","TxTAtualizaPrecos","TxTServicoAdic","TxToutrosServicoAdic","TxTReembolsos","PrecosPeriodo","COD_CRIA","Marca_COM"]
[null,1,{"$f":"+IF(Detalhe!C3=\"\",\"\",Detalhe!C3)","v":""},{"$f":"+ERSE_Precos_Fixos!$E3","v":{"$error":"#N/A"}},{"$f":"+IF(Detalhe!C6=\"\",\"\",Detalhe!C6)","v":""},{"$f":"IF(Detalhe!$C$7=\"\",\"\",Detalhe!$C$7)","v":""},{"$f":"IF(ERSE_Aux!$C$9=\"\",\"\",ERSE_Aux!$C$9)","v":{"$error":"#N/A"}},{"$f":"+IF(Detalhe!$C$79=\"\",\"\",Detalhe!$C$79)","v":""},{"$f":"+IF(Detalhe!$C$80=\"\",\"\",Detalhe!$C$80)","v":""},{"$f":"+IF(ERSE_Aux!$C$3=\"\",\"\",ERSE_Aux!$C$3)","v":{"$error":"#N/A"}},{"$f":"IF(Detalhe!$C19=\"\",\"\",Detalhe!$C19)","v":""},{"$f":"+IF(Detalhe!C20=\"\",\"\",Detalhe!C20)","v":""},{"$f":"+IF(Detalhe!C21=\"\",\"\",Detalhe!C21)","v":""},{"$f":"+IF(ERSE_Aux!$C$31=\"\",\"\",ERSE_Aux!$C$31)","v":"000"},{"$f":"+IF(ERSE_Aux!C41=\"\",\"\",ERSE_Aux!C41)","v":"00"},{"$f":"+IF(ERSE_Aux!C36=\"\",\"\",ERSE_Aux!C36)","v":"000"},{"$f":"N(Detalhe!$C34)&N(Detalhe!$C35)&N(Detalhe!$C36)&N(Detalhe!$C37)","v":"0000"},{"$f":"+IFERROR(ERSE_Aux!C15,\"N\")","v":"N"},{"$f":"+IFERROR(ERSE_Aux!C45,\"N\")","v":"N"},{"$f":"+IFERROR(ERSE_Aux!$C$55,\"N\")","v":"N"},{"$f":"+IFERROR(ERSE_Aux!$C$82,\"N\")","v":"N"},{"$f":"+IFERROR(ERSE_Aux!$C$19,\"N\")","v":"N"},"N",{"$f":"+IFERROR(ERSE_Aux!$C$23,\"N\")","v":"N"},{"$f":"+IFERROR(ERSE_Aux!$C$27,\"N\")","v":"N"},{"$f":"+IF(Detalhe!$C$57=\"\",\"\",Detalhe!$C$57)","v":""},{"$f":"+IF(Detalhe!$C$58=\"\",\"\",Detalhe!$C$58)","v":""},{"$f":"+IF(AND(Detalhe!$C$64<>0,Detalhe!$C$64<>\"\"),ABS(Detalhe!$C$64),0)","v":0},{"$f":"+IF(AND(Detalhe!$C$65<>0,Detalhe!$C$65<>\"\"),ABS(Detalhe!$C$65),0)","v":0},{"$f":"+IF(AND(Detalhe!$C$66<>0,Detalhe!$C$66<>\"\"),ABS(Detalhe!$C$66),0)","v":0},{"$f":"+IF(AND(Detalhe!$C$67<>0,Detalhe!$C$67<>\"\"),ABS(Detalhe!$C$67),0)","v":0},{"$f":"+IF(AND(Detalhe!$C$71<>0,Detalhe!$C$71<>\"\"),ABS(Detalhe!$C$71),0)","v":0},{"$f":"+IF(AND(Detalhe!$C$72<>0,Detalhe!$C$72<>\"\"),ABS(Detalhe!$C$72),0)","v":0},{"$f":"+IF(AND(Detalhe!$C$73<>0,Detalhe!$C$73<>\"\"),ABS(Detalhe!$C$73),0)","v":0},{"$f":"+IF(AND(Detalhe!$C$74<>0,Detalhe!$C$74<>\"\"),ABS(Detalhe!$C$74),0)","v":0},{"$f":"IF(Detalhe!$C8=\"\",\"\",Detalhe!$C8)","v":""},{"$f":"IF(Instruções!A15=\"\",\"\",Instruções!A15)","v":""},{"$f":"+IF(Detalhe!$C$10=\"\",\"\",Detalhe!$C$10)","v":""},{"$f":"+IF(Detalhe!$C$11=\"\",\"\",Detalhe!$C$11)","v":""},{"$f":"+IF(Detalhe!$C$12=\"\",\"\",Detalhe!$C$12)","v":""},{"$f":"+IF(Detalhe!$C$13=\"\",\"\",Detalhe!$C$13)","v":""},{"$f":"+IF(Detalhe!$C$14=\"\",\"\",Detalhe!$C$14)","v":""},{"$f":"+IF(Detalhe!$C$15=\"\",\"\",Detalhe!$C$15)","v":""},{"$f":"IF(Detalhe!C23=\"\",\"\",Detalhe!C23)","v":""},{"$f":"IF(Detalhe!C24=\"\",\"\",Detalhe!C24)","v":""},{"$f":"IF(Detalhe!C25=\"\",\"\",Detalhe!C25)","v":""},{"$f":"IF(+ERSE_Aux!$D$31=\"\",\"\",+ERSE_Aux!$D$31)","v":""},{"$f":"+IF(ERSE_Aux!$D$41=\"\",\"\",ERSE_Aux!$D$41)","v":""},{"$f":"+IF(ERSE_Aux!$D$36=\"\",\"\",ERSE_Aux!$D$36)","v":""},{"$f":"+IF(ERSE_Aux!$D$49=\"\",\"\",ERSE_Aux!$D$49)","v":""},{"$f":"IF(Detalhe!$C38=\"\",\"\",Detalhe!$C38)","v":""},{"$f":"+IF(Detalhe!C40=\"\",\"\",Detalhe!C40)","v":""},{"$f":"+IF(ERSE_Aux!$D$59=\"\",\"\",ERSE_Aux!$D$59)","v":""},{"$f":"IF(Detalhe!$C45=\"\",\"\",Detalhe!$C45)","v":""},{"$f":"IF(AND(ERSE_Aux!C73=\"\"),\"\",ERSE_Aux!C73)","v":""},{"$f":"IF(Detalhe!$C59=\"\",\"\",Detalhe!$C59)","v":""},{"$f":"IF(Detalhe!$C60=\"\",\"\",Detalhe!$C60)","v":""},{"$f":"IF(ERSE_Aux!C76&ERSE_Aux!C77=\"\",\"\",ERSE_Aux!D76&\" \"&ERSE_Aux!D77)","v":""},{"$f":"+ERSE_Aux!C79","v":"N"},{"$f":"+IF(Detalhe!$C$4=\"\",\"\",Detalhe!$C$4)","v":""},{"$f":"+IF(Detalhe!$C$5=\"\",\"\",Detalhe!$C$5)","v":""}]

{"sheet":"ERSE_Aux","index":8,"n_rows":93,"n_cols":6,"rows_kept":93,"cut":false,"hidden":true,"merged":[]}
[null,"Comboboxes"]
[]
[null,"Tipo_fornecimento = ",{"$f":"+INDEX(ERSE_Aux!$C$4:$C$7,MATCH(Detalhe!$C$18,ERSE_Aux!$A$4:$A$7,0))","v":{"$error":"#N/A"}}]
[1,"Gás","GN"]
[2]
[3]
[4]
[]
[null,"Segmento =",{"$f":"+INDEX(ERSE_Aux!$C$10:$C$13,MATCH(Detalhe!$C$9,ERSE_Aux!$A$10:$A$13,0))","v":{"$error":"#N/A"}}]
[1,"Não doméstico","Ndom"]
[2]
[{"$f":"+A11+1","v":3}]
[{"$f":"+A12+1","v":4}]
[]
[null,"Fidelização =",{"$f":"+INDEX(ERSE_Aux!$C$16:$C$17,MATCH(Detalhe!$C$39,ERSE_Aux!$A$16:$A$17,0))","v":{"$error":"#N/A"}}]
[1,"Não","N"]
[{"$f":"+A16+1","v":2},"Sim","S"]
[]
[null,"Serviços adicionais obrigatórios =",{"$f":"+INDEX(ERSE_Aux!$C$20:$C$21,MATCH(Detalhe!$C$56,ERSE_Aux!$A$20:$A$21,0))","v":{"$error":"#N/A"}}]
[1,"Não","N"]
[{"$f":"+A20+1","v":2},"Sim","S"]
[]
[null,"Reembolsos/Descontos",{"$f":"+INDEX(ERSE_Aux!$C$24:$C$25,MATCH(Detalhe!$C$63,ERSE_Aux!$A$24:$A$25,0))","v":{"$error":"#N/A"}}]
[1,"Não","N"]
[{"$f":"+A24+1","v":2},"Sim","S"]
[]
[null,"Descontos Novos Clientes",{"$f":"+INDEX(ERSE_Aux!$C$28:$C$29,MATCH(Detalhe!$C$70,ERSE_Aux!$A$28:$A$29,0))","v":{"$error":"#N/A"}}]
[1,"Não","N"]
[{"$f":"+A28+1","v":2},"Sim","S"]
[]
[null,"Contratação =",{"$f":"+D32&D33&D34","v":"000"},{"$f":"+IF(E32=\"\",\"\",E32&F32)&IF(E33=\"\",\"\",E33&F33)&E34","v":""}]
[null,"Eletrónica",{"$f":"+IF(Detalhe!C23=\"\",FALSE,TRUE)","v":false},{"$f":"+IF($C32=TRUE,1,0)","v":0},{"$f":"+IF(C32=TRUE,B32,\"\")","v":""},{"$f":"+IF(E32=\"\",\"\",IF(OR(E33<>\"\",E34<>\"\"),\", \",\"\"))","v":""}]
[null,"Presencial",{"$f":"+IF(Detalhe!C24=\"\",FALSE,TRUE)","v":false},{"$f":"+IF($C33=TRUE,1,0)","v":0},{"$f":"+IF(C33=TRUE,B33,\"\")","v":""},{"$f":"+IF(E33=\"\",\"\",IF(AND(E33<>\"\",E34<>\"\"),\", \",\"\"))","v":""}]
[null,"Telefónica",{"$f":"+IF(Detalhe!C25=\"\",FALSE,TRUE)","v":false},{"$f":"+IF($C34=TRUE,1,0)","v":0},""]
[]
[null,"Pagamento",{"$f":"+D37&D38&D39","v":"000"},{"$f":"+IF(E37=\"\",\"\",E37&F37)&IF(E38=\"\",\"\",E38&F38)&E39","v":""}]
[null,"Débito Direto",{"$f":"+Detalhe!C30","v":0},{"$f":"+IF($C37=TRUE,1,0)","v":0},{"$f":"+IF(C37=TRUE,B37,\"\")","v":""},{"$f":"+IF(E37=\"\",\"\",IF(OR(E38<>\"\",E39<>\"\"),\", \",\"\"))","v":""}]
[null,"Multibanco",{"$f":"+Detalhe!C31","v":0},{"$f":"+IF($C38=TRUE,1,0)","v":0},{"$f":"+IF(C38=TRUE,B38,\"\")","v":""},{"$f":"+IF(E38=\"\",\"\",IF(AND(E38<>\"\",E39<>\"\"),\", \",\"\"))","v":""}]
[null,"Numerário/Payshop/CTT",{"$f":"+Detalhe!C32","v":0},0,""]
[]
[null,"Modo de faturação =",{"$f":"+D42&D43","v":"00"},{"$f":"+IF(E42=\"\",\"\",E42&F42)&E43","v":""}]
[null,"Fatura eletrónica",{"$f":"+Detalhe!C27","v":0},{"$f":"+IF($C42=TRUE,1,0)","v":0},{"$f":"+IF(C42=TRUE,B42,\"\")","v":""},{"$f":"+IF(E42=\"\",\"\",IF(AND(E42<>\"\",E43<>\"\"),\", \",\"\"))","v":""}]
[null,"Fatura em papel",{"$f":"+Detalhe!C28","v":0},{"$f":"+IF($C43=TRUE,1,0)","v":0},""]
[]
[null,"GN Energia 100% renovável =",{"$f":"+INDEX(ERSE_Aux!$C$46:$C$47,MATCH(Detalhe!$C$41,ERSE_Aux!$A$46:$A$47,0))","v":{"$error":"#N/A"}}]
[1,"Não","N"]
[{"$f":"+A46+1","v":2},"100% renovável ou de baixo teor em carbono","S"]
[]
[null,"Meios de atendimento =",{"$f":"+D50&D51&D52&D53","v":"0000"},{"$f":"+IF(E50=\"\",\"\",E50&F50)&IF(E51=\"\",\"\",E51&F51)&IF(E52=\"\",\"\",E52&F52)&E53","v":""}]
[null,"Por escrito",{"$f":"+Detalhe!C34","v":0},{"$f":"+IF($C50=TRUE,1,0)","v":0},{"$f":"+IF(C50=TRUE,B50,\"\")","v":""},{"$f":"+IF(E50=\"\",\"\",IF(OR(E51<>\"\",E52<>\"\",E53<>\"\"),\", \",\"\"))","v":""}]
[null,"Presencial",{"$f":"+Detalhe!C35","v":0},{"$f":"+IF($C51=TRUE,1,0)","v":0},{"$f":"+IF(C51=TRUE,B51,\"\")","v":""},{"$f":"+IF(E51=\"\",\"\",IF(OR(E52<>\"\",E53<>\"\"),\", \",\"\"))","v":""}]
[null,"Telefónico",{"$f":"+Detalhe!C36","v":0},0,"",{"$f":"+IF(E52=\"\",\"\",IF(E53<>\"\",\", \",\"\"))","v":""}]
[null,"Eletrónico",{"$f":"+Detalhe!C37","v":0},0,""]
[]
[null,"Ofertas Condicionadas",{"$f":"+INDEX(ERSE_Aux!$C$56:$C$57,MATCH(Detalhe!$C$43,ERSE_Aux!$A$56:$A$57,0))","v":{"$error":"#N/A"}}]
[1,"Não","N"]
[{"$f":"+A56+1","v":2},"Sim","S"]
[]
[null,"Detalhe Ofertas Condicionadas =",null,{"$f":"+IF(Detalhe!$C$44=\"\",\"\",Detalhe!$C$44)","v":""}]
[]
[]
[null,"Detalhe/Descrição"]
[null,"Descrição Potliticas de atualização",{"$f":"+IF(Detalhe!C49=\"\",\"\",Detalhe!C49)","v":""},{"$f":"+IF(RIGHT(C63,1)=\".\",C63,SUBSTITUTE(C63,C63,C63&\".\"))","v":""}]
[null,"Descrição sobre se os Preços se mantêm",{"$f":"+IF(Detalhe!C50=\"\",\"\",Detalhe!C50)","v":""},{"$f":"+IF(RIGHT(C64,1)=\".\",C64,SUBSTITUTE(C64,C64,C64&\".\"))","v":""}]
[]
[]
[null,"Atualização TAR?",{"$f":"IF(Detalhe!C47,ERSE_Aux!B68,\"\")","v":""}]
[null,"Atualização dos preços em função das alterações nas tarifas de acesso às redes aprovadas pela ERSE."]
[]
[null,"Descrição gás 100% renovável ou de baixo teor em carbono?",{"$f":"+IF(Detalhe!C42=\"\",\"\",Detalhe!C42)","v":""},{"$f":"+IF(RIGHT(C70,1)=\".\",C70,SUBSTITUTE(C70,C70,C70&\".\"))","v":""}]
[]
[null,"Os preços são atualizados em função de outros parâmetros?",{"$f":"IF(Detalhe!C48,D63,\"\")","v":""}]
[null,"Concatenação de campos descritivos:",{"$f":"+IF(AND(C67=\"\",C72=\"\"),$D$64,$C$67&\" \"&$C$72&\" \"&$D$64&\" \"&$D$70)","v":""}]
[]
[null,"Detalhe/Descrição"]
[null,"Descrição reembolsos para qualquer cliente",{"$f":"+IF(Detalhe!C68=\"\",\"\",Detalhe!C68)","v":""},{"$f":"+IF(RIGHT(C76,1)=\".\",C76,SUBSTITUTE(C76,C76,C76&\".\"))","v":""}]
[null,"Descrição descontos para novos clientes",{"$f":"+IF(Detalhe!C75=\"\",\"\",Detalhe!C75)","v":""},{"$f":"+IF(RIGHT(C77,1)=\".\",C77,SUBSTITUTE(C77,C77,C77&\".\"))","v":""}]
[]
[null,"Diferentes preços/diferentes períodos",{"$f":"+C80","v":"N"}]
[null,"S / N",{"$f":"+IF(Preços_Fixos!C4=\"\",\"N\",IF(SUM(C87:C87)>0,\"N\",IF(Preços_Fixos!C4<Detalhe!C19,\"S\",\"N\")))","v":"N"}]
[]
[null,"Preços Indexados GN =",{"$f":"+INDEX(ERSE_Aux!$C$83:$C$84,MATCH(Detalhe!$C$51,ERSE_Aux!$A$83:$A$84,0))","v":{"$error":"#N/A"}}]
[1,"Não","N"]
[{"$f":"+A83+1","v":2},"Sim","S"]
[]
[null,"Teste ErroFixo/Index GN ="]
[null,"Preços Indexados GN",{"$f":"+IF(C82=\"S\",1,0)","v":{"$error":"#N/A"}},{"$f":"+IF(AND(C87=1), \"Erro\",\"OK\")","v":{"$error":"#N/A"}}]
[]
[]
[null,"Opção_Tarifária_GN = ",{"$f":"IF(C3=\"GN\",INDEX(ERSE_Aux!$C$91:$C$93,MATCH(Preços_Fixos!$E$6,ERSE_Aux!$A$91:$A$93,0)),\"\")","v":{"$error":"#N/A"}}]
[1,"Longas Utilizações","Longas Utilizações"]
[2,"Mensal","Mensal"]
[3]